Cogmind - Beta 11.1 @@@ ROGUE MODE // 2022.05.24 @ 01:31:17 Player: ktur Result: Destroyed by H-71 Marshal with Heavy Mass Driver Performance ------------- Evolutions (6) 3000 Regions Visited (21) 4200 Robots Destroyed (340) 1700 Value Destroyed (13902) 13902 Prototype IDs (75) 1500 Alien Tech Used (0) 0 Bonus (5739) 5739 TOTAL SCORE: 30041 Bonus ------- Triggered High Security 500 High Alert Combat Kills 1350 Follower Combat Kills 2088 Aligned with FarCom 300 Met Data Miner 300 Met Imprinter 300 Met Warlord at Base 500 MAIN.C Attacked Warlord 500 Warlord Defense Kills 240 Friendly Fire -339 Cogmind --------- Core Integrity 0/1150 Matter 142/300 Energy 72/100 System Corruption 9% Temperature Cool (0) Movement Core (50) Location -4/Factory Parts ------- > --- POWER (2) -------- (None) > --- PROPULSION (4) --- (None) > --- UTILITY (11) ----- Experimental Melee Analysis Suite Experimental Core Analyzer Advanced Hacking Suite > --- WEAPON (2) ------- (None) > --- INVENTORY (5) ---- Authchip [Device] Authchip [Weapon] Vortex Rifle (35) Vortex Shotgun (50) Vortex Cannon (26) Peak State ------------ > --- POWER ------------ Antimatter Reactor Antimatter Reactor > --- PROPULSION ------- Heavy Treads Improved Heavy Treads > --- UTILITY ---------- Huge Storage Unit Experimental Core Analyzer Advanced Transmission Jammer Experimental Utility Shielding Experimental Thermal Shield Improved Force Field Hacking Suite Advanced Hacking Suite Advanced Hacking Suite Advanced Hacking Suite Makeshift System Shield > --- WEAPON ----------- Tri-rail Accelerator > --- INVENTORY -------- Vortex Chain Reactor Matter Compressor Experimental Phase Shifter Medium Reactive Plating Graphene Brace Authchip [Device] Authchip [Weapon] Army-in-a-Box Vortex Rifle Vortex Rifle Vortex Shotgun Vortex Shotgun Vortex Cannon Vortex Cannon Hypervelocity Coil Gun Hypervelocity Coil Gun Heavy Rocket Launcher RU-N14's Throwing Claymores RU-N14's Throwing Claymores [Rating: 137] Favorites ----------- Power Cold Fusion Reactor Engine Improved Deuterium Engine Power Core Neutrino Core Reactor Cold Fusion Reactor Propulsion Heavy Treads Treads Heavy Treads Leg Flexi-carbon Leg Flight Unit Improved VTOL Module Utility Hacking Suite Device Combat Drone Bay Storage Huge Storage Unit Processor Advanced Targeting Computer Hackware Hacking Suite Protection Experimental Utility Shielding Weapon Heavy Assault Cannon Energy Gun Improved Medium Laser Energy Cannon Cooled Plasma Cannon Ballistic Gun Hypervelocity Coil Gun Ballistic Cannon Heavy Assault Cannon Launcher Heavy Rocket Launcher Special Weapon RU-N14's Throwing Claymores Piercing Weapon CR-A16's Pointy Stick Build | -11 -10 -10 -10 -9 -8 -7 -7 -7 -7 -6 -6 -6 -6 -6 -5 -5 -5 -5 -5 -4 -4 ------- Run | Scr Mat Min Exi Min Mat Fac Low Low Dat Pro Fac Low Low Zio Pro Fac Upp Upp War Pro Fac Slots Evolved 12 | . . . . . 4 2 . . . . 2 . . . . 2 . . . . 2 Power 1 | . . . . . . . . . . . . . . . . . . . . . 1 Propulsion 2 | . . . . . 2 . . . . . . . . . . . . . . . . Utility 9 | . . . . . 2 2 . . . . 2 . . . . 2 . . . . 1 Weapon . | . . . . . . . . . . . . . . . . . . . . . . Parts Attached 364 | 6 24 9 1 . 52 23 7 7 1 21 28 1 2 11 8 84 6 10 24 3 36 Power 29 | 1 4 1 1 . 3 2 . 2 . 1 2 . . . . 3 . . 1 . 8 Engine 12 | 1 4 1 1 . 1 2 . 1 . 1 . . . . . . . . . . . Core 7 | . . . . . 2 . . 1 . . . . . . . 3 . . . . 1 Reactor 10 | . . . . . . . . . . . 2 . . . . . . . 1 . 7 Propulsion 57 | 2 4 1 . . 19 5 1 3 . 4 5 . . . . 8 . . 1 . 4 Treads 53 | 2 4 1 . . 18 5 1 3 . 4 3 . . . . 8 . . 1 . 3 Leg 2 | . . . . . . . . . . . 2 . . . . . . . . . . Wheel 1 | . . . . . . . . . . . . . . . . . . . . . 1 Hover . | . . . . . . . . . . . . . . . . . . . . . . Flight 1 | . . . . . 1 . . . . . . . . . . . . . . . . Utility 134 | 1 3 . . . 11 9 5 . . 10 14 1 2 4 6 35 2 7 11 3 10 Device 48 | . . . . . 3 1 1 . . 4 3 1 2 4 2 10 1 4 3 3 6 Storage 5 | 1 2 . . . 1 . . . . . 1 . . . . . . . . . . Processor 9 | . 1 . . . 2 . . . . . 1 . . . 1 . . . 3 . 1 Hackware 16 | . . . . . . 4 . . . . 2 . . . . 9 1 . . . . Protection 56 | . . . . . 5 4 4 . . 6 7 . . . 3 16 . 3 5 . 3 Artifact . | . . . . . . . . . . . . . . . . . . . . . . Weapon 144 | 2 13 7 . . 19 7 1 2 1 6 7 . . 7 2 38 4 3 11 . 14 Energy Gun 20 | 2 5 4 . . 4 . . . . . . . . . . . . . 3 . 2 Energy Cannon 25 | . . . . . . . . . . 3 5 . . 1 . 14 . . 1 . 1 Ballistic Gun 39 | . 6 1 . . 11 . . . . . . . . . . 12 1 2 1 . 5 Ballistic Cannon 37 | . . 2 . . 1 5 1 1 1 1 2 . . 3 1 9 2 1 6 . 1 Launcher 15 | . 2 . . . 3 2 . 1 . 2 . . . 1 1 1 1 . . . 1 Special Weapon 7 | . . . . . . . . . . . . . . 1 . 2 . . . . 4 Impact Weapon . | . . . . . . . . . . . . . . . . . . . . . . Slashing Weapon . | . . . . . . . . . . . . . . . . . . . . . . Piercing Weapon 1 | . . . . . . . . . . . . . . 1 . . . . . . . Special Melee Weapon . | . . . . . . . . . . . . . . . . . . . . . . Unidentified Prototypes 21 | . 1 . . . 2 . . 1 . 2 3 . . 2 . . . . 9 . 1 Parts Lost 43 | . . 2 . . 11 1 . . . 3 3 . . . 1 2 . . . . 20 Power 5 | . . . . . 1 . . . . . 1 . . . . 1 . . . . 2 Propulsion 16 | . . 1 . . 7 . . . . 3 2 . . . . . . . . . 3 Utility 12 | . . . . . 1 . . . . . . . . . 1 1 . . . . 9 Weapon 10 | . . 1 . . 2 1 . . . . . . . . . . . . . . 6 Highest Loss Streak 12 | . . 1 . . 4 1 . . . 2 1 . . . 1 1 . . . . 12 To Critical Strikes . | . . . . . . . . . . . . . . . . . . . . . . Average Slot Usage (%) 85 | . 97 99 100 100 97 92 91 91 84 95 87 73 73 72 76 83 77 79 81 82 77 Engine 3 | . 13 14 14 14 3 4 7 7 7 7 3 . . . . . . . . . . Core 1 | . . . . . 5 2 . . . . . . . . . 3 5 5 3 . 2 Reactor 2 | . . . . . . . . . . . 2 6 6 6 6 1 . . 1 5 6 Treads 19 | . 27 27 28 28 34 30 30 30 30 28 15 13 13 13 13 10 11 11 11 11 8 Device 4 | . . . . . 7 . . . . . 2 6 6 5 6 8 5 5 . 2 10 Storage 6 | . 14 14 14 14 9 7 7 7 7 7 6 6 6 6 6 5 5 5 5 5 4 Processor 5 | . 12 14 14 14 9 7 7 7 7 7 6 6 6 6 1 . . . 5 5 5 Hackware 22 | . . . . . . 23 23 23 23 23 25 26 26 26 26 35 35 35 35 35 27 Protection 5 | . . . . . 8 6 7 7 7 6 5 . . . 8 7 5 8 10 8 4 Energy Gun 2 | . 20 20 28 28 5 . . . . . . . . . . . . . . . . Energy Cannon 1 | . . . . . . . . . . 5 11 . . . . 2 1 . . . . Ballistic Gun 2 | . 6 5 . . 12 . . . . . . . . . . 2 . . . . 1 Ballistic Cannon 3 | . . 1 . . . 6 6 6 . 1 . 6 6 5 5 1 4 4 4 5 3 Naked Turns . | . . . . . . . . . . . . . . . . . . . . . . Heaviest Build 168 | 14 53 53 53 53 104 112 112 112 112 122 133 116 116 116 133 134 132 132 138 132 168 Greatest Support 145 | 40 40 40 40 40 82 82 82 96 96 88 140 140 140 140 140 140 140 140 140 140 145 Greatest Overweight (x) 55 | . 2 1 1 1 1 1 1 1 1 1 2 . . . . 1 . . . . 55 Average Overweight (x) . | . . 1 1 1 . 1 1 1 1 1 . . . . . . . . . . . Largest Inventory Capacity 25 | 8 20 20 20 20 25 25 25 25 25 25 25 25 25 25 25 25 25 25 25 25 25 Average Capacity 23 | 7 13 20 20 20 21 25 25 25 25 25 25 25 25 25 25 25 25 25 25 25 24 Most Carried 25 | 7 17 20 20 20 25 25 25 25 25 25 25 25 25 25 25 25 25 25 25 25 25 Average Carried 23 | 3 12 18 18 20 20 24 25 24 24 24 24 24 25 24 24 24 24 24 24 25 23 Final Capacity 25 | 8 20 20 20 20 25 25 25 25 25 25 25 25 25 25 25 25 25 25 25 25 25 Final Carried 25 | 6 17 18 20 20 25 25 25 25 25 25 25 25 25 25 24 25 25 25 25 25 25 Class Distribution -------------------- 49% | Hacker-Mutant 30% | Wizard-Mutant 16% | Mutant 3% | Scavenger-Mutant Dominant Class ---------------- Mutant | -10/Materials Mutant | -10/Mines Mutant | -10/Exiles Mutant | -9/Mines Mutant | -8/Materials Hacker-Mutant | -7/Factory Hacker-Mutant | -7/Lower Caves Hacker-Mutant | -7/Lower Caves Hacker-Mutant | -7/Data Miner Hacker-Mutant | -6/Proximity Caves Hacker-Mutant | -6/Factory Hacker-Mutant | -6/Lower Caves Hacker-Mutant | -6/Lower Caves Hacker-Mutant | -6/Zion Hacker-Mutant | -5/Proximity Caves Wizard-Mutant | -5/Factory Wizard-Mutant | -5/Upper Caves Wizard-Mutant | -5/Upper Caves Wizard-Mutant | -5/Warlord Wizard-Mutant | -4/Proximity Caves Wizard-Mutant | -4/Factory Resources | -11 -10 -10 -10 -9 -8 -7 -7 -7 -7 -6 -6 -6 -6 -6 -5 -5 -5 -5 -5 -4 -4 ----------- Run | Scr Mat Min Exi Min Mat Fac Low Low Dat Pro Fac Low Low Zio Pro Fac Upp Upp War Pro Fac Matter Collected 10446 | 206 369 354 . . 1514 708 622 200 . 461 271 310 494 110 336 1983 854 511 342 126 675 Remotely 261 | . . . . . . 216 45 . . . . . . . . . . . . . . Salvage Created 12974 | . 453 716 . . 2383 659 368 115 . 365 1331 335 171 . 332 2532 460 401 27 158 2168 Parts 630 | . 43 31 . . 124 42 16 3 . 15 71 9 8 . 12 111 18 14 . 2 111 Haulers Intercepted 12 | . 1 . . . 5 . . . . . 1 . . . . 2 . . . . 3 Recyclers Shooed 12 | . . . . . 3 3 . . . . . . . . . 6 . . . . . Parts Field Recycled . | . . . . . . . . . . . . . . . . . . . . . . Retrieved Matter . | . . . . . . . . . . . . . . . . . . . . . . Parts Self-Destructed 193 | . . . . . . . 11 2 . 25 . 34 28 1 29 . 42 19 . 2 . Prevented 4 | . . . . . . . . 1 . . . . 3 . . . . . . . . Kills | -11 -10 -10 -10 -9 -8 -7 -7 -7 -7 -6 -6 -6 -6 -6 -5 -5 -5 -5 -5 -4 -4 ------- Run | Scr Mat Min Exi Min Mat Fac Low Low Dat Pro Fac Low Low Zio Pro Fac Upp Upp War Pro Fac Combat Hostiles Destroyed 258 | . 13 18 . . 37 19 4 5 . 9 21 7 4 . 12 40 16 10 1 4 38 Melee 1 | . . . . . . . . . . . . . . . . . . . . . 1 Guns 67 | . 7 17 . . 32 . . . . . . . . . . 6 . . . . 5 Cannons 132 | . . 1 . . . 12 4 2 . 6 17 7 4 . 8 30 13 10 1 4 13 AOE 52 | . 6 . . . 5 7 . 3 . 3 . . . . 4 2 3 . . . 19 Classes Destroyed 22 | . 8 1 . . 6 1 1 . . . 2 . . . 1 . . . 1 . 1 Worker 18 | . 1 1 . . 4 1 . . . . . . . . . 5 . . . . 6 Builder 17 | . 2 . . . 1 2 . . . . 1 . . . . 4 . . . . 7 Tunneler 5 | . 1 3 . . 1 . . . . . . . . . . . . . . . . Hauler 12 | . 1 . . . 5 . . . . . 1 . . . . 2 . . . . 3 Recycler 13 | . . . . . 7 2 . . . . . . . . . 2 . . . . 2 Mechanic 2 | . . . . . . . . . . . 1 . . . . . . . . . 1 Operator 6 | . 3 . . . 1 1 . . . . . . . . . . . . . . 1 Watcher 11 | . 2 . . . . . . . . . 3 . . . . 2 . . . . 4 Swarmer 51 | . 6 . . . 8 3 3 3 . . 2 1 1 . 5 4 7 . . . 8 Saboteur 1 | . . . . . . . . . . . . . . . . . . . . . 1 Grunt 117 | . 7 16 . . 18 9 . 1 . 5 10 3 . . 2 18 7 6 . 2 13 Brawler 8 | . . . . . . . . . . . 1 1 1 . 2 1 . . . . 2 Duelist 6 | . . . . . 1 . . . . 1 . . . . . . 1 . . 1 2 Sentry 21 | . . . . . 6 4 . 1 . . 2 1 1 . . 3 1 1 . 1 . Demolisher 1 | . . . . . . . . . . . . . . . 1 . . . . . . Specialist 2 | . . . . . 2 . . . . . . . . . . . . . . . . Hunter 19 | . . . . . 1 . . . . 2 . 1 . . 2 5 . 2 . . 6 Programmer 24 | . . . . . . 3 . . . 1 6 . . . . 9 . . . . 5 Heavy 2 | . . . . . 1 . . . . . . . . . . . . . . . 1 Behemoth 3 | . . . . . . . 1 . . . . . 1 . . . . 1 . . . Executioner 1 | . . . . . . . . . . . . . . . . . . . 1 . . Assembled 2 | . . 2 . . . . . . . . . . . . . . . . . . . Best Kill Streak 13 | . 8 6 . . 7 5 3 3 . 5 4 2 2 . 6 7 10 4 1 3 13 Combat Bots Only 10 | . 4 5 . . 5 4 3 3 . 5 4 2 2 . 6 6 10 4 1 3 8 Max Kills in Single Turn 14 | . 4 2 . . 2 3 1 2 . 1 1 1 1 . 3 2 2 1 1 1 14 Gunslinging 1 | . . . . . 1 . . . . . . . . . . . . . . . . Exploded 4 | . 3 . . . 2 2 . 2 . 1 . . . . 3 2 2 . . . 4 Melee 1 | . . . . . . . . . . . . . . . . . . . . . 1 Uniques/NPCs Destroyed . | . . . . . . . . . . . . . . . . . . . . . . Combat | -11 -10 -10 -10 -9 -8 -7 -7 -7 -7 -6 -6 -6 -6 -6 -5 -5 -5 -5 -5 -4 -4 -------- Run | Scr Mat Min Exi Min Mat Fac Low Low Dat Pro Fac Low Low Zio Pro Fac Upp Upp War Pro Fac Damage Taken 19540 | . 349 625 . . 3064 1178 689 206 . 797 1026 415 271 . 662 3177 93 457 110 372 6049 Core 2377 | . 61 124 . . 299 103 72 30 . 54 49 10 31 . 52 294 26 14 . . 1158 Absorbed by Shields 431 | . . . . . . . . . . . . . . . . . . . . . 431 Reduced by Siege Mode 1095 | . . . . . . . . . . . . 26 13 . 47 380 5 64 . 47 513 Redirected to Shielding 318 | . . . . . . . . . . . . . . . . 79 14 61 . . 164 Regen/Repaired (Parts) 3677 | . 110 . . . . 267 . . . . 248 . . . . 2610 . . . . 442 Core Remaining (%) 63 | 100 . . . 26 45 . . . . 63 . . . . 83 . . . . 66 . Volleys Fired 1005 | . 49 81 . . 157 72 40 9 . 27 95 33 28 1 31 188 31 46 2 12 103 Largest 2 | . 2 2 . . 2 1 1 1 . 1 2 1 1 1 1 2 1 2 1 1 2 Hottest 131 | . 112 112 . . 131 60 60 60 . 90 120 60 60 35 60 105 60 70 60 60 94 Shots Fired 1339 | . 76 118 . . 284 71 40 11 . 27 142 33 28 1 31 253 34 55 3 12 120 Gun 554 | . 69 75 . . 277 . . . . . . . . . . 74 . 16 1 . 42 Cannon 722 | . . 43 . . 2 59 40 9 . 24 142 33 28 1 28 175 31 39 2 12 54 Launcher 41 | . 7 . . . 5 12 . 2 . 3 . . . . 3 . 3 . . . 6 Special 22 | . . . . . . . . . . . . . . . . 4 . . . . 18 Kinetic 801 | . 34 73 . . 166 59 40 9 . 17 2 33 28 . 28 140 31 55 2 12 72 Thermal 448 | . 35 45 . . 113 . . . . 5 140 . . 1 . 109 . . . . . Explosive 61 | . 7 . . . 5 12 . 2 . 3 . . . . 3 2 3 . . . 24 Electromagnetic 18 | . . . . . . . . . . 2 . . . . . . . . . . 16 Entropic 9 | . . . . . . . . . . . . . . . . . . . 1 . 8 Robot Hit Streak 33 | . 23 9 . . 17 13 15 7 . 4 10 15 11 . 18 19 13 26 13 20 33 Robot Miss Streak 7 | . 3 2 . . 7 2 2 3 . 1 3 2 2 . 1 2 2 3 . 1 2 Penetration Max 2 | . . . . . . . 1 . . . . . . . . 1 . . . . 2 Secondary Targets 10 | . 1 . . . 9 . . . . . . . . . . . . . . . . Max Gunslinging Chain 1 | . 1 . . . 1 . . . . . . . . . . . . . . . . Shots Hit Robots 862 | . 52 54 . . 201 43 32 4 . 17 73 18 19 . 26 164 26 29 1 12 91 Core Hits 534 | . 31 26 . . 95 35 15 4 . 12 34 6 6 . 13 91 23 27 1 11 104 Critical Kills 17 | . . . . . 1 . . . . . 3 . . . . 9 . . . . 4 Critical Parts Destroyed 19 | . . . . . . . . . . . . . . . . 13 . . . . 6 Critical Strikes 96 | . 4 2 . . 11 3 7 1 . 4 3 3 2 . 6 27 3 5 . 1 14 Burn 16 | . 4 2 . . 10 . . . . . . . . . . . . . . . . Meltdown 5 | . . . . . . . . . . . 3 . . . . 2 . . . . . Destroy 32 | . . . . . 1 . . . . . . . . . . 20 . 2 . . 9 Blast 38 | . . . . . . 3 7 1 . 4 . 3 2 . 6 4 3 3 . 1 1 Sever 4 | . . . . . . . . . . . . . . . . 1 . . . . 3 Detonate 1 | . . . . . . . . . . . . . . . . . . . . . 1 Melee Attacks . | . . . . . . . . . . . . . . . . . . . . . . Impact . | . . . . . . . . . . . . . . . . . . . . . . Slashing . | . . . . . . . . . . . . . . . . . . . . . . Piercing . | . . . . . . . . . . . . . . . . . . . . . . Sneak Attacks . | . . . . . . . . . . . . . . . . . . . . . . Combat Hostiles . | . . . . . . . . . . . . . . . . . . . . . . Follow-up Attacks . | . . . . . . . . . . . . . . . . . . . . . . Damage Inflicted 38379 | . 1174 1038 . . 3951 3456 1823 385 . 1101 2566 898 881 . 1777 6152 1564 1881 59 756 8917 Guns 6115 | . 590 912 . . 3495 . . . . . . . . . . 509 . 44 . . 565 Cannons 21098 | . . 39 . . 50 2090 1823 208 . 819 2443 898 881 . 1292 4538 1311 1837 59 756 2054 Explosions 9921 | . 576 70 . . 346 1338 . 177 . 282 . . . . 485 710 253 . . . 5684 Melee . | . . . . . . . . . . . . . . . . . . . . . . Ramming 562 | . 8 17 . . 60 28 . . . . 123 . . . . 326 . . . . . Kinetic 19004 | . 153 315 . . 2061 2090 1823 208 . 603 . 898 881 . 1292 2814 1311 1881 59 756 1859 Thermal 9598 | . 437 706 . . 1484 333 . . . 153 2443 . . . . 2233 . . . . 1809 Explosive 7709 | . 576 . . . 346 1005 . 177 . 282 . . . . 485 710 253 . . . 3875 Electromagnetic 487 | . . . . . . . . . . 63 . . . . . . . . . . 424 Impact . | . . . . . . . . . . . . . . . . . . . . . . Slashing 683 | . . . . . . . . . . . . . . . . 69 . . . . 614 Piercing . | . . . . . . . . . . . . . . . . . . . . . . Entropic 336 | . . . . . . . . . . . . . . . . . . . . . 336 Highest Corruption 17 | . . . . . 2 3 3 3 3 3 1 . . . . 17 17 17 17 . 9 Average Corruption 6 | . . . . . 1 2 3 3 3 2 1 . . . . 9 17 17 17 . 6 Corruption Purged 3 | . . . . . . . . . . 2 1 . . . . . . . . . . Corruption Blocked . | . . . . . . . . . . . . . . . . . . . . . . Effects 358 | . . . . . 40 21 28 17 4 14 5 . . . . 122 55 44 2 . 6 Message Errors 81 | . . . . . 4 5 7 3 1 2 1 . . . . 28 16 13 . . 1 Matter Fused 91 | . . . . . 11 5 5 7 1 5 1 . . . . 32 10 13 . . 1 Heat Flow Errors 36 | . . . . . 4 . 6 . 1 2 . . . . . 12 7 1 1 . 2 Energy Discharges 33 | . . . . . 6 2 3 . . . 2 . . . . 12 4 4 . . . Parts Rejected 10 | . . . . . 3 1 1 . . 1 . . . . . 4 . . . . . Data Loss (minor) 52 | . . . . . 4 5 5 2 1 2 1 . . . . 13 10 7 . . 2 Data Loss (major) 18 | . . . . . 1 2 1 3 . 2 . . . . . 5 2 2 . . . Misfires 18 | . . . . . 4 . . 2 . . . . . . . 5 4 2 1 . . Alerts 10 | . . . . . 2 . . . . . . . . . . 6 1 1 . . . Weapon Failures 9 | . . . . . 1 1 . . . . . . . . . 5 1 1 . . . Overload Shots 9 | . . . . . . . . . . . 2 . . . . 7 . . . . . Effects 1 | . . . . . . . . . . . . . . . . 1 . . . . . Heat Surge 1 | . . . . . . . . . . . . . . . . 1 . . . . . Overflow Damage 1855 | . 56 5 . . 26 222 335 56 . 38 75 35 16 . 94 286 27 15 . 1 568 Projectiles 957 | . . . . . . 117 335 56 . 38 66 35 16 . 50 190 27 15 . 1 11 Explosions 860 | . 56 5 . . 23 105 . . . . . . . . 44 70 . . . . 557 Melee 38 | . . . . . 3 . . . . . 9 . . . . 26 . . . . . Knockbacks 90 | . . . . . 1 11 3 . . 3 1 5 2 . 10 14 9 5 1 4 21 Impact 3 | . . . . . . . . . . . 1 . . . . 2 . . . . . Kinetic 77 | . . . . . 1 10 3 . . 3 . 4 2 . 10 11 7 4 1 4 17 Secondary 10 | . . . . . . 1 . . . . . 1 . . . 1 2 1 . . 4 Self-Inflicted Damage 456 | . . 114 . . 37 13 . . . 51 . . . . 48 111 . . . . 82 Shots 11 | . . 2 . . 2 1 . . . 2 . . . . 1 1 . . . . 2 Rammed 43 | . 5 3 . . 3 5 . . . . 8 . . . . 19 . . . . . Targets Rammed 50 | . 5 5 . . 6 5 . . . . 8 . . . . 21 . . . . . Kicked . | . . . . . . . . . . . . . . . . . . . . . . Crushed 7 | . . 2 . . 3 . . . . . . . . . . 2 . . . . . Highest Temperature 425 | . 253 410 . . 425 110 258 56 167 194 153 11 2 . 5 272 219 101 199 121 297 Average Temperature 71 | . 67 107 . . 99 34 62 26 84 60 66 4 2 . 2 73 69 36 70 56 58 Received Heat Transfer 4366 | . 114 347 . . 1206 177 45 60 . 180 366 66 15 . 66 711 9 117 . 168 719 Effects 4 | . 1 . . . 2 . . . . . . . . . . 1 . . . . . Energy Bleed 1 | . 1 . . . . . . . . . . . . . . . . . . . . Interference 1 | . . . . . . . . . . . . . . . . 1 . . . . . Short Circuit 1 | . . . . . 1 . . . . . . . . . . . . . . . . Damage (minor) 1 | . . . . . 1 . . . . . . . . . . . . . . . . Siege Activations 42 | . . . . . . . . . . . 1 3 3 . 3 17 2 6 . 2 5 Total Turns 1103 | . . . . . . . . . . . 4 47 114 . 62 425 112 134 . 33 172 Longest Duration 101 | . . . . . . . . . . . 4 28 43 . 36 47 101 39 . 18 47 Robots Corrupted . | . . . . . . . . . . . . . . . . . . . . . . Combat Hostiles . | . . . . . . . . . . . . . . . . . . . . . . Parts Fried 5 | . . . . . . . . . . . . . . . . 3 . . . . 2 Impact Corruptions 10 | . . . . . 1 . 4 . . . 1 . . . . 4 . . . . . Robots Melted 7 | . . . . . . . . . . . 5 . . . . 2 . . . . . Combat Hostiles 6 | . . . . . . . . . . . 4 . . . . 2 . . . . . Parts Melted 43 | . 2 2 . . 10 . . . . . 17 . . . . 12 . . . . . Heat Transferred 14744 | . 1369 1630 . . 3880 200 . . . . 3385 . . . . 3130 . . . . 1150 Parts Sabotaged 5 | . . . . . . . . . . . . . . . . . . . . . 5 Parts Stolen . | . . . . . . . . . . . . . . . . . . . . . . Parts Stripped . | . . . . . . . . . . . . . . . . . . . . . . Power Chain Reactions . | . . . . . . . . . . . . . . . . . . . . . . Missiles Intercepted . | . . . . . . . . . . . . . . . . . . . . . . Alert | -11 -10 -10 -10 -9 -8 -7 -7 -7 -7 -6 -6 -6 -6 -6 -5 -5 -5 -5 -5 -4 -4 ------- Run | Scr Mat Min Exi Min Mat Fac Low Low Dat Pro Fac Low Low Zio Pro Fac Upp Upp War Pro Fac Peak Influence 1930 | . 257 280 . . 494 393 . . . . 298 . . . . 528 . . . . 1930 Initial 205 | . . 52 . . . 205 . . . . . . . . . 97 . . . . 25 Average 199 | . 175 97 . . 253 152 . . . . 127 . . . . 183 . . . . 511 Maximum Alert Level 5 | . 1 1 . . 2 1 . . . . 1 . . . . 2 . . . . 5 Low Security (%) 61 | 100 52 83 . 100 48 54 . . . . 71 . . . . 65 . . . . 52 Level 1 23 | . 47 16 . . 21 45 . . . . 28 . . . . 14 . . . . 3 Level 2 10 | . . . . . 29 . . . . . . . . . . 19 . . . . 6 Level 3 1 | . . . . . . . . . . . . . . . . . . . . . 20 Level 4 1 | . . . . . . . . . . . . . . . . . . . . . 12 Level 5 . | . . . . . . . . . . . . . . . . . . . . . 4 High Security . | . . . . . . . . . . . . . . . . . . . . . 1 Max Security . | . . . . . . . . . . . . . . . . . . . . . . Squads Dispatched 58 | . 4 . . . 7 8 . . . . 14 . . . 1 10 . . . . 14 Investigation 20 | . 1 . . . 4 3 . . . . 7 . . . . 3 . . . . 2 Extermination 17 | . . . . . . 4 . . . . 5 . . . . 5 . . . . 3 Reinforcement 13 | . 3 . . . 3 1 . . . . 1 . . . . 2 . . . . 3 Assault 7 | . . . . . . . . . . . 1 . . . 1 . . . . . 5 Garrison 1 | . . . . . . . . . . . . . . . . . . . . . 1 Intercept . | . . . . . . . . . . . . . . . . . . . . . . Searches Triggered . | . . . . . . . . . . . . . . . . . . . . . . Data Miner Redirects 7 | . . . . . . . . . . . 4 . . . . . . . . . 3 Construction Impeded 2 | . . . . . . 1 . . . . . . . . . . . . . . 1 Haulers Reinforced . | . . . . . . . . . . . . . . . . . . . . . . Active Scanning Responses . | . . . . . . . . . . . . . . . . . . . . . . Cargo Convoy Interrupts 1 | . . . . . . . . . . . . . . . . . . . . . 1 Stealth | -11 -10 -10 -10 -9 -8 -7 -7 -7 -7 -6 -6 -6 -6 -6 -5 -5 -5 -5 -5 -4 -4 --------- Run | Scr Mat Min Exi Min Mat Fac Low Low Dat Pro Fac Low Low Zio Pro Fac Upp Upp War Pro Fac Distress Signals 17 | . 1 1 . . 7 2 . . . . 2 . . . . 1 . . . . 3 Communications Jammed 78 | . . . . . . . . . . . . . . . . 13 . . . . 65 Distress Signals 68 | . . . . . . . . . . . . . . . . 13 . . . . 55 Times Spotted 417 | . 25 21 . . 64 24 7 4 . 20 32 16 13 . 22 51 23 11 3 4 77 Peak Tracking Total 12 | . 6 4 . . 6 4 3 3 . 6 4 12 6 . 8 4 11 4 10 3 10 Tactical Retreats 23 | . . 1 . . . 1 . . . 5 1 4 5 . . 2 . . . . 4 Traps | -11 -10 -10 -10 -9 -8 -7 -7 -7 -7 -6 -6 -6 -6 -6 -5 -5 -5 -5 -5 -4 -4 ------- Run | Scr Mat Min Exi Min Mat Fac Low Low Dat Pro Fac Low Low Zio Pro Fac Upp Upp War Pro Fac Traps Triggered 16 | . 5 . . . 5 1 . . . . 1 . . . . 3 . . 1 . . Indirectly . | . . . . . . . . . . . . . . . . . . . . . . Trap Hack Attempts . | . . . . . . . . . . . . . . . . . . . . . . Triggered . | . . . . . . . . . . . . . . . . . . . . . . Disarmed 8 | . . . . . . . . . . . . . . . . 8 . . . . . Reprogrammed . | . . . . . . . . . . . . . . . . . . . . . . Reused . | . . . . . . . . . . . . . . . . . . . . . . Traps Extracted . | . . . . . . . . . . . . . . . . . . . . . . Installed . | . . . . . . . . . . . . . . . . . . . . . . Triggered 16 | . . . . . . . . 2 . 1 . . 1 . . . . . 12 . . Machines | -11 -10 -10 -10 -9 -8 -7 -7 -7 -7 -6 -6 -6 -6 -6 -5 -5 -5 -5 -5 -4 -4 ---------- Run | Scr Mat Min Exi Min Mat Fac Low Low Dat Pro Fac Low Low Zio Pro Fac Upp Upp War Pro Fac Machines Disabled 58 | . 1 2 . . 3 15 . . . . 4 1 . . . 9 1 . 1 . 21 Max in Single Turn 9 | . 1 2 . . 1 4 . . . . 1 . . . . 2 . . 1 . 9 Garrison Access 7 | . . . . . 1 . . . . . 3 . . . . 2 . . . . 1 Machines Sabotaged . | . . . . . . . . . . . . . . . . . . . . . . Garrisons Compromised . | . . . . . . . . . . . . . . . . . . . . . . Overloaded Fab Kills . | . . . . . . . . . . . . . . . . . . . . . . Hacking | -11 -10 -10 -10 -9 -8 -7 -7 -7 -7 -6 -6 -6 -6 -6 -5 -5 -5 -5 -5 -4 -4 --------- Run | Scr Mat Min Exi Min Mat Fac Low Low Dat Pro Fac Low Low Zio Pro Fac Upp Upp War Pro Fac Machines Accessed 89 | . 7 1 2 . 13 10 . . 4 1 19 . . . . 18 1 . 4 . 9 Terminals 42 | . 4 1 . . 8 6 . . . 1 9 . . . . 8 1 . . . 4 Fabricators 13 | . . . . . . 3 . . . . 5 . . . . 3 . . . . 2 Repair Stations 9 | . 1 . . . 1 1 . . . . 1 . . . . 4 . . . . 1 Recycling Units 5 | . 2 . . . 1 . . . . . . . . . . 1 . . . . 1 Scanalyzers 5 | . . . . . 2 . . . . . 2 . . . . . . . . . 1 Garrison Access 5 | . . . . . 1 . . . . . 2 . . . . 2 . . . . . Total Hacks 377 | . 20 4 2 . 33 40 . . 32 1 70 . . . . 120 6 . 9 . 40 Successful 298 | . 12 2 2 . 15 28 . . 32 1 59 . . . . 95 6 . 9 . 37 Failed 75 | . 8 1 . . 18 11 . . . . 10 . . . . 24 . . . . 3 Catastrophic 4 | . . . . . 2 . . . . . 1 . . . . 1 . . . . . Database Lockouts 4 | . . 1 . . . 1 . . . . 1 . . . . 1 . . . . . Manual 136 | . 9 4 1 . 9 24 . . . . 26 . . . . 42 . . . . 21 Terminals 180 | . 13 4 . . 19 28 . . . 1 27 . . . . 59 6 . . . 23 Fabricators 51 | . . . . . . 10 . . . . 17 . . . . 19 . . . . 5 Repair Stations 54 | . 5 . . . 2 2 . . . . 3 . . . . 37 . . . . 5 Recycling Units 10 | . 2 . . . 2 . . . . . . . . . . 3 . . . . 3 Scanalyzers 31 | . . . . . 7 . . . . . 20 . . . . . . . . . 4 Garrison Access 8 | . . . . . 3 . . . . . 3 . . . . 2 . . . . . Terminal Hacks 137 | . 6 2 2 . 4 14 . . 32 1 15 . . . . 30 6 . 9 . 16 Record 26 | . . . 1 . . . . . 10 1 . . . . . . 6 . 8 . . Part Schematic 26 | . . . . . . 2 . . 12 . 3 . . . . 4 . . . . 5 Robot Schematic 7 | . . . . . . . . . 7 . . . . . . . . . . . . Robot Analysis 2 | . 1 1 . . . . . . . . . . . . . . . . . . . Prototype ID Bank 11 | . 1 . . . 1 1 . . 3 . . . . . . 3 . . . . 2 Open Door 1 | . . . . . . . . . . . . . . . . . . . 1 . . Branch Access Points 4 | . . . . . . 1 . . . . 1 . . . . 1 . . . . 1 Machine Index 2 | . . . . . . . . . . . . . . . . 2 . . . . . Terminal Index 4 | . . . . . . 1 . . . . 2 . . . . 1 . . . . . Fabricator Index 2 | . . . . . . 1 . . . . . . . . . . . . . . 1 Repair Station Index 1 | . . . . . . 1 . . . . . . . . . . . . . . . Alert Level 17 | . 1 1 . . 1 2 . . . . 3 . . . . 5 . . . . 4 Unreport Threat 11 | . . . . . 1 3 . . . . 2 . . . . 5 . . . . . Locate Traps 10 | . 2 . . . . 2 . . . . 2 . . . . 2 . . . . 2 Disarm Traps 2 | . . . . . . . . . . . . . . . . 2 . . . . . Recall Extermination 2 | . . . . . . . . . . . . . . . . 2 . . . . . Hauler Manifests 7 | . 1 . . . 1 . . . . . 2 . . . . 2 . . . . 1 Registered Prototypes 1 | . . . . . . . . . . . . . . . . 1 . . . . . EX-Prototype ID Bank 1 | . . . 1 . . . . . . . . . . . . . . . . . . Fabricator Hacks 32 | . . . . . . 5 . . . . 10 . . . . 14 . . . . 3 Network Status 2 | . . . . . . . . . . . 1 . . . . 1 . . . . . Load Schematic 20 | . . . . . . 4 . . . . 6 . . . . 7 . . . . 3 Build 10 | . . . . . . 1 . . . . 3 . . . . 6 . . . . . Repair Station Hacks 48 | . 2 . . . 1 2 . . . . 3 . . . . 35 . . . . 5 Scan Component 26 | . 1 . . . 1 1 . . . . 2 . . . . 18 . . . . 3 Repair 22 | . 1 . . . . 1 . . . . 1 . . . . 17 . . . . 2 Recycling Unit Hacks 5 | . 2 . . . 1 . . . . . . . . . . 1 . . . . 1 Retrieve Components 5 | . 2 . . . 1 . . . . . . . . . . 1 . . . . 1 Scanalyzer 31 | . . . . . 7 . . . . . 20 . . . . . . . . . 4 Insert Component 12 | . . . . . 4 . . . . . 7 . . . . . . . . . 1 Analyze 19 | . . . . . 3 . . . . . 13 . . . . . . . . . 3 Garrison Access Hacks 5 | . . . . . 1 . . . . . 2 . . . . 2 . . . . . Seal Access 5 | . . . . . 1 . . . . . 2 . . . . 2 . . . . . Unauthorized Hacks 40 | . 2 . . . 1 7 . . . . 9 . . . . 13 . . . . 8 Terminals 21 | . 2 . . . 1 4 . . . . 3 . . . . 7 . . . . 4 Track 1 | . . . . . . . . . . . . . . . . 1 . . . . . Assimilate 4 | . . . . . . 1 . . . . 1 . . . . 1 . . . . 1 Botnet 11 | . 1 . . . 1 2 . . . . 2 . . . . 3 . . . . 2 Disrupt 1 | . . . . . . . . . . . . . . . . 1 . . . . . Operators 4 | . 1 . . . . 1 . . . . . . . . . 1 . . . . 1 Fabricators 15 | . . . . . . 3 . . . . 6 . . . . 4 . . . . 2 Report 1 | . . . . . . . . . . . . . . . . 1 . . . . . Prioritize 2 | . . . . . . . . . . . 1 . . . . 1 . . . . . Liberate 1 | . . . . . . . . . . . 1 . . . . . . . . . . Haulers 1 | . . . . . . . . . . . . . . . . 1 . . . . . Recompile 10 | . . . . . . 3 . . . . 4 . . . . 1 . . . . 2 Repair Stations . | . . . . . . . . . . . . . . . . . . . . . . Recycling Units 4 | . . . . . . . . . . . . . . . . 2 . . . . 2 Reject 2 | . . . . . . . . . . . . . . . . 1 . . . . 1 Mask 2 | . . . . . . . . . . . . . . . . 1 . . . . 1 Scanalyzers . | . . . . . . . . . . . . . . . . . . . . . . Garrison Access . | . . . . . . . . . . . . . . . . . . . . . . Data Cores Recovered . | . . . . . . . . . . . . . . . . . . . . . . Used . | . . . . . . . . . . . . . . . . . . . . . . Hacking Detections 57 | . 6 1 . . 12 7 . . . . 12 . . . . 14 . . . . 5 Full Trace Events 8 | . . . . . 3 . . . . . 3 . . . . 2 . . . . . Feedback Events 1 | . . . . . . . . . . . 1 . . . . . . . . . . Corruption 1 | . . . . . . . . . . . 1 . . . . . . . . . . Feedback Blocked . | . . . . . . . . . . . . . . . . . . . . . . Robot Schematics Acquired 10 | . . . . . . . . . 7 . . . . 3 . . . . . . . Robots Built . | . . . . . . . . . . . . . . . . . . . . . . Authchips . | . . . . . . . . . . . . . . . . . . . . . . Time . | . . . . . . . . . . . . . . . . . . . . . . Total Robot Build Rating . | . . . . . . . . . . . . . . . . . . . . . . Part Schematics Acquired 49 | . . . . . 3 2 . . 12 . 10 . . 13 . 4 . . . . 5 Parts Built 12 | . . . . . . 1 . . . . 4 . . . . 7 . . . . . Authchips 7 | . . . . . . 1 . . . . 1 . . . . 5 . . . . . Time 467 | . . . . . . 24 . . . . 195 . . . . 248 . . . . . Total Part Build Rating 69 | . . . . . . 3 . . . . 25 . . . . 41 . . . . . Parts Repaired 22 | . 1 . . . . 1 . . . . 1 . . . . 17 . . . . 2 Time 576 | . 13 . . . . 19 . . . . 19 . . . . 457 . . . . 68 Parts Recycled . | . . . . . . . . . . . . . . . . . . . . . . Recycled Matter . | . . . . . . . . . . . . . . . . . . . . . . Retrieved Matter . | . . . . . . . . . . . . . . . . . . . . . . Retrieved Components 39 | . 10 . . . 10 . . . . . . . . . . 9 . . . . 10 Parts Scanalyzed 11 | . . . . . 3 . . . . . 7 . . . . . . . . . 1 Part Schematics Acquired 10 | . . . . . 3 . . . . . 7 . . . . . . . . . . Parts Damaged . | . . . . . . . . . . . . . . . . . . . . . . Bothacking | -11 -10 -10 -10 -9 -8 -7 -7 -7 -7 -6 -6 -6 -6 -6 -5 -5 -5 -5 -5 -4 -4 ------------ Run | Scr Mat Min Exi Min Mat Fac Low Low Dat Pro Fac Low Low Zio Pro Fac Upp Upp War Pro Fac Used RIF Installer . | . . . . . . . . . . . . . . . . . . . . . . Robots Hacked . | . . . . . . . . . . . . . . . . . . . . . . Non-combat . | . . . . . . . . . . . . . . . . . . . . . . Combat . | . . . . . . . . . . . . . . . . . . . . . . Robot Hacks Applied . | . . . . . . . . . . . . . . . . . . . . . . Relay Couplers Released 4 | . . . . . . . . . . . 2 . . . . . . . . . 2 Machine Destruction 4 | . . . . . . . . . . . 2 . . . . . . . . . 2 Fabnet Peak Effective % . | . . . . . . . . . . . . . . . . . . . . . . Robots Rewired 6 | . . . . . . . . . . . . 2 2 . 2 . . . . . . Allies Hacked . | . . . . . . . . . . . . . . . . . . . . . . Hacks Repelled . | . . . . . . . . . . . . . . . . . . . . . . Allies | -11 -10 -10 -10 -9 -8 -7 -7 -7 -7 -6 -6 -6 -6 -6 -5 -5 -5 -5 -5 -4 -4 -------- Run | Scr Mat Min Exi Min Mat Fac Low Low Dat Pro Fac Low Low Zio Pro Fac Upp Upp War Pro Fac Total Allies 15 | . . . . . . 1 . . . 1 3 2 2 2 2 1 . . . . 1 Largest Group 4 | . . . . . . 1 . . . 1 3 3 3 3 4 1 . . . . 1 Highest-Rated Group 112 | . . . . . . 26 . . . 96 90 85 91 83 112 26 . . . . 10 Highest-Rated Ally 96 | . . . . . . 26 . . . 96 32 30 32 32 32 26 . . . . 10 Total Orders 96 | . . . . . . . . . . . . 39 30 . 6 . 13 8 . . . STAY 13 | . . . . . . . . . . . . 9 1 . . . 1 2 . . . ROAM 11 | . . . . . . . . . . . . 5 4 . . . 1 1 . . . FOLLOW 13 | . . . . . . . . . . . . 5 6 . 2 . . . . . . EXPLORE 17 | . . . . . . . . . . . . 4 9 . 1 . 2 1 . . . RETURN 42 | . . . . . . . . . . . . 16 10 . 3 . 9 4 . . . Ally Attacks 481 | . . . . . . . . . . 14 . 81 67 . 63 . 45 16 . . 195 Total Damage 9839 | . . . . . . . . . . 577 . 1249 1179 . 1528 . 599 293 . . 4414 Kills 74 | . . . . . . . . . . 6 . 12 9 . 9 . 9 2 . . 27 Allies Corrupted 1 | . . . . . . . . . . . . . . . 1 . . . . . . Allies Melted 1 | . . . . . . . . . . . . . . . . . . . 1 . . Intel | -11 -10 -10 -10 -9 -8 -7 -7 -7 -7 -6 -6 -6 -6 -6 -5 -5 -5 -5 -5 -4 -4 ------- Run | Scr Mat Min Exi Min Mat Fac Low Low Dat Pro Fac Low Low Zio Pro Fac Upp Upp War Pro Fac Robot Analysis Total 2 | . 1 1 . . . . . . . . . . . . . . . . . . . Derelict Logs Recovered 19 | . . 1 . . . . 2 1 . 1 . 1 2 2 2 . 3 1 . 3 . Drone Launches 69 | . . . . . . . . . . . . 14 10 . 4 . 8 3 . . 30 Drone Recoveries 35 | . . . . . . . . . . . . 14 10 . 2 . 7 2 . . . Exploration | -11 -10 -10 -10 -9 -8 -7 -7 -7 -7 -6 -6 -6 -6 -6 -5 -5 -5 -5 -5 -4 -4 ------------- Run | Scr Mat Min Exi Min Mat Fac Low Low Dat Pro Fac Low Low Zio Pro Fac Upp Upp War Pro Fac Turns Passed 32049 | 72 1365 1194 592 75 3052 1868 1689 970 241 1299 3587 1996 1609 1698 673 4198 1310 1005 1378 762 1416 Spaces Moved 13935 | 38 629 382 246 32 1352 608 620 383 98 457 1372 895 857 1043 338 1600 717 485 822 442 519 Core 16 | 3 2 . . . . . . . . . . . . . . . . . . . 11 Treads 13919 | 35 627 382 246 32 1352 608 620 383 98 457 1372 895 857 1043 338 1600 717 485 822 442 508 Legs . | . . . . . . . . . . . . . . . . . . . . . . Wheels . | . . . . . . . . . . . . . . . . . . . . . . Hover . | . . . . . . . . . . . . . . . . . . . . . . Flight . | . . . . . . . . . . . . . . . . . . . . . . Fastest Speed 50 | 50 100 240 240 240 158 243 243 242 242 243 160 160 160 160 160 160 160 160 160 160 50 Average Speed 185 | 151 179 240 240 240 179 244 243 243 242 244 215 160 160 160 160 160 160 160 160 160 181 Slowest Speed 2800 | 160 240 240 240 240 247 247 243 247 242 245 320 160 160 160 160 240 160 160 160 160 2800 Overloaded Moves . | . . . . . . . . . . . . . . . . . . . . . . Propulsion Burnouts . | . . . . . . . . . . . . . . . . . . . . . . Robots Hopped . | . . . . . . . . . . . . . . . . . . . . . . Cave-ins Triggered . | . . . . . . . . . . . . . . . . . . . . . . Exploration Rate (%) 58 | 4 79 43 60 15 89 16 67 60 68 50 38 99 98 85 66 33 93 64 91 56 15 Regions Visited 21 Branch Regions 15 Pre-discovered Areas 11 | . . 1 1 . . . 1 . 1 . . . 1 2 . . 1 . 2 1 . Known Exits Taken 5 | . . . . . . 1 . . . . 1 . . . . 1 1 . . 1 . Unknown Exits Taken 16 | 1 1 1 1 1 1 . 1 1 1 1 . 1 1 1 1 . . 1 1 . . Scrap Searched 30 | . . . . . . . 3 3 . 4 . 4 4 2 2 . 4 1 . 3 . Spaces Dug 186 | . . . . . 8 19 . 16 . 41 22 10 3 . . 34 7 6 . . 20 Terrain Destroyed 634 | . 34 20 . . 25 71 14 33 . 52 50 20 12 . 36 106 66 24 1 4 66 Melee . | . . . . . . . . . . . . . . . . . . . . . . Projectile 289 | . . . . . . 22 14 6 . 11 50 20 12 . 7 72 23 22 1 4 25 AOE 341 | . 34 20 . . 25 49 . 27 . 41 . . . . 29 32 43 . . . 41 Terrain Rammed . | . . . . . . . . . . . . . . . . . . . . . . Walls Destroyed . | . . . . . . . . . . . . . . . . . . . . . . Machines Disabled . | . . . . . . . . . . . . . . . . . . . . . . Actions | -11 -10 -10 -10 -9 -8 -7 -7 -7 -7 -6 -6 -6 -6 -6 -5 -5 -5 -5 -5 -4 -4 --------- Run | Scr Mat Min Exi Min Mat Fac Low Low Dat Pro Fac Low Low Zio Pro Fac Upp Upp War Pro Fac Total 18653 | 51 799 535 251 31 1726 882 743 407 104 605 1864 1411 1054 1074 426 2929 853 663 887 484 874 Wait 2801 | . 45 45 . . 75 149 72 2 . 74 308 455 157 3 25 977 84 110 3 26 191 Move 13914 | 37 628 381 245 31 1351 607 619 382 97 456 1371 894 856 1042 337 1599 716 484 821 441 519 Hop . | . . . . . . . . . . . . . . . . . . . . . . Pick Up 186 | 8 25 8 1 . 42 11 1 2 3 7 21 3 1 3 1 24 5 3 8 . 9 Fast Attach 174 | 4 15 1 . . 19 9 4 2 . 13 15 . 2 9 4 35 2 5 20 2 13 Attach 107 | 2 . 3 1 . 20 6 . 2 1 6 10 1 . 2 3 21 3 5 3 . 18 Detach 29 | . 1 . . . 1 2 . 1 . 2 2 . . 2 1 7 4 3 1 . 2 Swap 83 | . 9 5 . . 13 8 3 3 . 2 3 . . . 1 28 1 . 1 1 5 Drop 257 | . 22 6 4 . 42 13 4 4 3 18 31 3 3 12 5 29 7 7 28 2 14 Fire 1005 | . 49 81 . . 157 72 40 9 . 27 95 33 28 1 31 188 31 46 2 12 103 Melee . | . . . . . . . . . . . . . . . . . . . . . . Ram . | . . . . . . . . . . . . . . . . . . . . . . Kick . | . . . . . . . . . . . . . . . . . . . . . . Crush 50 | . 5 5 . . 6 5 . . . . 8 . . . . 21 . . . . . Escape Stasis . | . . . . . . . . . . . . . . . . . . . . . . Rewire 47 | . . . . . . . . . . . . 22 7 . 18 . . . . . . Trap . | . . . . . . . . . . . . . . . . . . . . . . Miscellaneous . | . . . . . . . . . . . . . . . . . . . . . . Route ------- -11/Scrapyard -10/Materials (discovered 3 exits: [*Mat x2] / *Min) -10/Mines -10/Exiles -9/Mines -8/Materials (discovered 3 exits: *Fac x3) -7/Factory (discovered 4 exits: *Fac / Sto / *Low x2) -7/Lower Caves -7/Lower Caves (discovered 2 exits: *Fac / *Dat) -7/Data Miner -6/Proximity Caves -6/Factory (discovered 2 exits: *Low x2) -6/Lower Caves -6/Lower Caves (discovered 2 exits: *Fac / [*Zio]) -6/Zion -5/Proximity Caves -5/Factory (discovered 2 exits: *Upp x2) -5/Upper Caves -5/Upper Caves (discovered 2 exits: *Fac / *War) -5/Warlord -4/Proximity Caves -4/Factory (discovered 5 exits: Upp x2 / Ext x2 / Arm) History --------- Turn | Location | Event 42 | -11/Scrapyard | Discovered new exit (range 15) 73 | -11/Scrapyard | Entered Materials 314 | -10/Materials | Build established: Mutant 393 | -10/Materials | Discovered new exit (range 8) 577 | -10/Materials | Discovered new exit (range 7) 814 | -10/Materials | Discovered new exit (range 16) 1346 | -10/Materials | Repaired Lgt. Treads 1438 | -10/Materials | Entered Mines 1548 | -10/Mines | Excavation squad dispatched 1548 | -10/Mines | A large section of the Mines collapsed 1707 | -10/Mines | Joined a pair of Derelicts in attacking an 0b10 outpost 1798 | -10/Mines | Excavation squad dispatched 2048 | -10/Mines | Excavation squad dispatched 2126 | -10/Mines | Core integrity fell below 50% 2146 | -10/Mines | Learned Materials terminal intel 2298 | -10/Mines | Excavation squad dispatched 2299 | -10/Mines | Learned location of Storage (-7) 2502 | -10/Mines | Central database locked down 2548 | -10/Mines | Excavation squad dispatched 2622 | -10/Mines | Deemed a non-threat by the Exiles lab entrance 2622 | -10/Mines | Discovered new exit (range 5) 2632 | -10/Mines | Entered Exiles 2692 | -10/Exiles | Met 8R-AWN 2731 | -10/Exiles | Met EX-HEX 2827 | -10/Exiles | Met EX-DEC 2836 | -10/Exiles | Learned location of Zion (-6) 2889 | -10/Exiles | Met EX-BIN 2916 | -10/Exiles | Aligned with FarCom system 2918 | -10/Exiles | Given EX-Vault access code 2973 | -10/Exiles | Opened EX-Vault 2998 | -10/Exiles | Found Army-in-a-Box 3049 | -10/Exiles | Warned to stay clear of 0b10 Research branches 3200 | -10/Exiles | Discovered new exit (range 10) 3224 | -10/Exiles | Left Exiles lab with Army-in-a-Box 3224 | -10/Exiles | Entered Mines 3277 | -9/Mines | Discovered new exit (range 10) 3299 | -9/Mines | Entered Materials 3299 | -8/Materials | Evolved 4 slots: Propulsion x2, Utility x2 3300 | -8/Materials | Loaded intel: 12 terminal locations 3702 | -8/Materials | Discovered new exit (range 15) 3760 | -8/Materials | Lost 4 parts (2n1u1w) 4441 | -8/Materials | Build established: Scavenger-Mutant 4852 | -8/Materials | Discovered new exit (range 13) 5142 | -8/Materials | Found Powered Armor 5148 | -8/Materials | Found Powered Armor 5335 | -8/Materials | Found Powered Armor 5422 | -8/Materials | Core integrity fell below 50% 5440 | -8/Materials | Build established: Mutant 5543 | -8/Materials | Found Powered Armor 5964 | -8/Materials | Discovered new exit (range 16) 6351 | -8/Materials | Entered Factory 6351 | -7/Factory | Evolved 2 slots: Utility x2 6396 | -7/Factory | Discovered new exit (range 12) 6401 | -7/Factory | Identified exit to Storage 6401 | -7/Factory | Identified exit to Lower Caves 6636 | -7/Factory | Build established: Hacker-Mutant 7791 | -7/Factory | Repaired Arm. Treads 7831 | -7/Factory | Central database locked down 8103 | -7/Factory | Fabricated Hvy. Assault Cannon (x1) 8219 | -7/Factory | Entered Lower Caves 8260 | -7/Lower Caves | Learned location of Extension (-4) 8633 | -7/Lower Caves | Spotted B-75 Beast 8748 | -7/Lower Caves | Destroyed B-75 Beast 9292 | -7/Lower Caves | Encountered a Warlord checkpoint 9874 | -7/Lower Caves | Discovered new exit (range 15) 9889 | -7/Lower Caves | Learned Factory emergency access door positions 9908 | -7/Lower Caves | Entered another Lower Caves area 9916 | -7/Lower Caves | Discovered new exit (range 13) 9925 | -7/Lower Caves | Attracted the attention of an 0b10 checkpoint 10844 | -7/Lower Caves | Discovered new exit (range 11) 10878 | -7/Lower Caves | Entered Data Miner 10879 | -7/Data Miner | Discovered new exit (range 6) 10971 | -7/Data Miner | Met Data Miner 11014 | -7/Data Miner | Learned location of Section 7 (-2) 11053 | -7/Data Miner | Received God Mode back door access code from Data Miner 11119 | -7/Data Miner | Entered Proximity Caves 11180 | -6/Proximity Caves | Learned Factory emergency access door positions 11208 | -6/Proximity Caves | Attracted the attention of an 0b10 checkpoint 11209 | -6/Proximity Caves | Escorted by Enhanced Grunt 11419 | -6/Proximity Caves | Found Prototype Device 11419 | -6/Proximity Caves | Identified Exp. Thermal Shield 12121 | -6/Proximity Caves | Spotted B-75 Beast 12380 | -6/Proximity Caves | Discovered new exit (range 5) 12418 | -6/Proximity Caves | Entered Factory 12418 | -6/Factory | Evolved 2 slots: Utility x2 13325 | -6/Factory | Repaired Hvy. Assault Cannon 13560 | -6/Factory | Fabricated Adv. Transmission Jammer? 14083 | -6/Factory | Discovered new exit (range 12) 14528 | -6/Factory | Fabricated Hvy. Treads? 14584 | -6/Factory | Incoming investigation squad redirected 14713 | -6/Factory | Incoming investigation squad redirected 14723 | -6/Factory | Central database locked down 14723 | -6/Factory | Identified exit to Lower Caves 14990 | -6/Factory | Incoming investigation squad redirected 15604 | -6/Factory | Incoming investigation squad redirected 15664 | -6/Factory | Fabricated Combat Drone Bay? 16005 | -6/Factory | Entered Lower Caves 16005 | -6/Lower Caves | Accompanied by 1 ally 16592 | -6/Lower Caves | Attracted the attention of an 0b10 outpost 16630 | -6/Lower Caves | Attracted the attention of an 0b10 checkpoint 16829 | -6/Lower Caves | Learned 8 Factory zone layouts 16835 | -6/Lower Caves | Discovered new exit (range 90) 18001 | -6/Lower Caves | Entered another Lower Caves area 18001 | -6/Lower Caves | Accompanied by 2 allies 18068 | -6/Lower Caves | Discovered new exit (range 16) 18139 | -6/Lower Caves | Encountered a Warlord checkpoint 18391 | -6/Lower Caves | Destroyed B-75 Beast 18589 | -6/Lower Caves | Discovered new exit (range 62) 18666 | -6/Lower Caves | Attracted the attention of an 0b10 outpost 19364 | -6/Lower Caves | Learned Factory security intel 19610 | -6/Lower Caves | Entered Zion 19610 | -6/Zion | Accompanied by 1 ally 19808 | -6/Zion | Discovered new exit (range 15) 20031 | -6/Zion | Found Prototype Special Weapon 20032 | -6/Zion | Identified RU-N14's Throwing Claymores 20088 | -6/Zion | Given A8's code to call for help 20260 | -6/Zion | Found Prototype Device 20260 | -6/Zion | Identified Mobile Refinery Mk. CCLXVII 20387 | -6/Zion | Found CR-A16's Pointy Stick 20424 | -6/Zion | Rebuked by Imprinter 20651 | -6/Zion | Gained Derelict followers 20680 | -6/Zion | Learned Factory terminal intel 20931 | -6/Zion | Learned location of Warlord (-5) 21138 | -6/Zion | Found RU-N14's Throwing Claymores 21308 | -6/Zion | Entered Proximity Caves 21308 | -5/Proximity Caves | Accompanied by 3 allies 21358 | -5/Proximity Caves | Attracted the attention of an 0b10 outpost 21390 | -5/Proximity Caves | Learned Factory stockpile data 21546 | -5/Proximity Caves | Learned Factory stockpile data 21926 | -5/Proximity Caves | Discovered new exit (range 7) 21981 | -5/Proximity Caves | Entered Factory 21981 | -5/Factory | Evolved 2 slots: Utility x2 21982 | -5/Factory | Identified exit to Upper Caves 21986 | -5/Factory | Loaded intel: 26 terminal locations 22340 | -5/Factory | Build established: Wizard-Mutant 22689 | -5/Factory | Repaired Hvy. Treads 22709 | -5/Factory | Repaired Hvy. Assault Cannon 22737 | -5/Factory | Repaired Hvy. Treads 22761 | -5/Factory | Repaired Med. Reactive Plating 22816 | -5/Factory | Repaired Exp. Thermal Shield 22839 | -5/Factory | Repaired Hvy. Rocket Launcher 22865 | -5/Factory | Repaired Imp. Medium Armor Plating 22976 | -5/Factory | Fabricated Exp. Utility Shielding? 23086 | -5/Factory | Fabricated Adv. Hacking Suite (x1) 23361 | -5/Factory | Fabricated Adv. Hacking Suite? 23770 | -5/Factory | Fabricated Tri-rail Accelerator? 23932 | -5/Factory | Fabricated Hyp. Coil Gun (x2) 23983 | -5/Factory | Fabricated Combat Drone Bay (x1) 24023 | -5/Factory | System corruption reached 10% 24263 | -5/Factory | Central database locked down 24318 | -5/Factory | Repaired Hvy. Treads 24337 | -5/Factory | Repaired Hvy. Treads 24365 | -5/Factory | Repaired Exp. Utility Shielding 24768 | -5/Factory | Repaired Hyp. Coil Gun 24792 | -5/Factory | Repaired Med. Reactive Plating 25655 | -5/Factory | Repaired Hvy. Treads 25685 | -5/Factory | Repaired Hvy. Treads 25837 | -5/Factory | Repaired Tri-rail Accelerator 25861 | -5/Factory | Repaired Med. Reactive Plating 25890 | -5/Factory | Repaired Hyp. Coil Gun 26179 | -5/Factory | Entered Upper Caves 26479 | -5/Upper Caves | Destroyed 10 combat bots 26511 | -5/Upper Caves | Learned location of Armory (-4) 26511 | -5/Upper Caves | Identified exit to Upper Caves 26511 | -5/Upper Caves | Learned Extension trap positions 26511 | -5/Upper Caves | Learned Armory security intel 26511 | -5/Upper Caves | Learned Factory garrison access intel 26599 | -5/Upper Caves | Learned Factory terminal intel 26929 | -5/Upper Caves | Encountered a Warlord checkpoint 27093 | -5/Upper Caves | Learned Factory security intel 27489 | -5/Upper Caves | Entered another Upper Caves area 27490 | -5/Upper Caves | Identified exit to Factory 27724 | -5/Upper Caves | Encountered a Warlord checkpoint 27837 | -5/Upper Caves | Spotted B-75 Beast 27871 | -5/Upper Caves | Destroyed B-75 Beast 28290 | -5/Upper Caves | Attracted the attention of an 0b10 checkpoint 28421 | -5/Upper Caves | Discovered new exit (range 15) 28494 | -5/Upper Caves | Entered Warlord 28552 | -5/Warlord | System corruption cleaned by Quarantine Array 28940 | -5/Warlord | Learned 4 Research zone layouts 28942 | -5/Warlord | Learned Research security intel 28942 | -5/Warlord | Learned Factory repair station intel 28942 | -5/Warlord | Learned Factory garrison access intel 28942 | -5/Warlord | Learned Research terminal intel 28945 | -5/Warlord | Learned location of Quarantine (-3) 28945 | -5/Warlord | Learned Quarantine trap positions 28995 | -5/Warlord | Visited the Vortex Lab 29004 | -5/Warlord | Warlord's base attacked by MAIN.C 29008 | -5/Warlord | Found Prototype Energy Cannon 29008 | -5/Warlord | Identified Vortex Cannon 29011 | -5/Warlord | Found Prototype Energy Gun 29011 | -5/Warlord | Identified Vortex Shotgun 29020 | -5/Warlord | Found Prototype Energy Gun 29020 | -5/Warlord | Identified Vortex Rifle 29034 | -5/Warlord | Found Vortex Shotgun 29053 | -5/Warlord | Found Vortex Cannon 29064 | -5/Warlord | Found Vortex Rifle 29354 | -5/Warlord | Warlord forces counterattacked 29477 | -5/Warlord | Met Warlord 29514 | -5/Warlord | Found Prototype Processor 29514 | -5/Warlord | Identified Exp. Core Analyzer 29526 | -5/Warlord | Found Prototype Device 29526 | -5/Warlord | Identified Exp. Phase Shifter 29544 | -5/Warlord | Found Prototype Reactor 29679 | -5/Warlord | Warlord base infiltrated, sounded retreat 29736 | -5/Warlord | Found Prototype Ballistic Cannon 29736 | -5/Warlord | Identified Hvy. Autocannon 29750 | -5/Warlord | Found Prototype Device 29750 | -5/Warlord | Identified Exp. Shock Absorption System 29819 | -5/Warlord | Spotted Executioner 29828 | -5/Warlord | Destroyed Executioner 29853 | -5/Warlord | Discovered new exit (range 14) 29872 | -5/Warlord | Entered Proximity Caves 29954 | -4/Proximity Caves | Attracted the attention of an 0b10 checkpoint 30100 | -4/Proximity Caves | Learned Research terminal intel 30634 | -4/Proximity Caves | Entered Factory 30634 | -4/Factory | Evolved 2 slots: Power x1, Utility x1 30635 | -4/Factory | Identified exit to Upper Caves 30635 | -4/Factory | Identified exit to Extension 30638 | -4/Factory | Loaded intel: 28 terminal locations 30639 | -4/Factory | Loaded intel: 6 repair station locations 30640 | -4/Factory | Loaded intel: 4 garrison access locations 30650 | -4/Factory | Identified Vortex Chain Reactor 30814 | -4/Factory | Repaired Exp. Utility Shielding 30843 | -4/Factory | Repaired Hvy. Treads 31120 | -4/Factory | Identified exit to Armory 31305 | -4/Factory | Incoming investigation squad redirected 31433 | -4/Factory | First assault squad dispatched 31450 | -4/Factory | Incoming assault squad redirected 31607 | -4/Factory | Destroyed 7 combat bots 31832 | -4/Factory | Destroyed 8 combat bots 31858 | -4/Factory | Cargo convoy interrupted 31886 | -4/Factory | Incoming assault squad redirected 31953 | -4/Factory | Garrison activated, responded to threat 32005 | -4/Factory | Lost 12 parts (2p2n5u3w) 32029 | -4/Factory | Core integrity fell below 50% 32034 | -4/Factory | High security lockdown imminent 32045 | -4/Factory | Core integrity fell below 20% 32050 | -4/Factory | Found Prototype Processor 32050 | -4/Factory | Identified Exp. Melee Analysis Suite 32050 | -4/Factory | Destroyed by H-71 Marshal with Heavy Mass Driver Last Messages --------------- 32032_ B-60 Warrior destroyed. 32034_ G-67 Veteran overheating. 32034_ G-67 Veteran destroyed. 32034_ ALERT: High security lockdown imminent, T-100. 32036_ Destroyed Plasma Rifle. 32036_ G-67 Veteran destroyed. 32038_ G-73 Enforcer destroyed. 32040_ Penetrated by Slug. 32040_ Vortex Shotgun destroyed. 32042_ G-67 Veteran destroyed. 32043_ Hvy. Rocket Launcher destroyed. 32044_ Dropped Huge Storage Unit. 32045_ Acquired 16 matter. 32046_ Acquired Wheel. 32046_ Wheel destroyed. 32046_ Adv. Hacking Suite destroyed. 32049_ Acquired 1 matter. 32049_ Acquired 6 matter. 32050_ Acquired Prototype Processor. 32050_ Identified Exp. Melee Analysis Suite. Map ----- +----------------------------------------------------+ | ?????????????????????????????? | | ??????????????????????????????"" !!* | | ?????????????????????????????"G !! | | ??????????????????????????????"" """" ! | | ??????????????????????????????????"""" | | ???????????????????????????? ??""" | | ?????????????????????????? | | ????????????????????????? """" """ | | ????????????????????????# """" """ % | | ????????????????????????# """" """" """" | | ????????????????????????# !!! | | ????????????????????????# !! """" """" """" | | ???????????????????????## %""" """" """" | | ???????????????????????# %" """" """% | | ???????????????????!???# % = | | ?????????????????? ??# % %"""" """" | | ??????????????????? ??# *"%"" """" | | ?????????????????? ?# % %R %"%"% """" | | ????????????????? """"?# % = %% % | | ????????????????? """" # g= | | ????????????????? """ # ! | | ????????????????? "" " !% | | ????????????????? """ |* | | ????????????????# """" !% """ %/=%*% #######+### | | ????????????????# """ ! !% "Y" % ![|%!# ! | | ????????????????# * w@ %"=" =%*##! | | ??????????? ##### ###[! ! **% % ! # """"""" | | ?????????? !*]%[![=%!/ % % ## | | ??????????? ![]!! !! =%% ## """"""" | | ??????????? *!!![ =%!![!% + | | ???????????? """"" " =%[ !%!%!%/ ############## | | ??????????????"""" ==! !=]%* ####?????"""T | | ???????????? ^ * !%[!=% ! #????????? | | ?????????? !%% !;*! #????????? | | ????????! %%! ; #????????? | | ???????? ? ? *! #! !! #????????? | | ????????????? [ * # !!* #????????? | | ????????????? % [A ##!##+####????????? | | ????????????? =%= #[%=?%#???????????? | | ????????????# " * #???????????? | | ?????????????### % # #?#???????????? | | ??????????????? ### ?????????????? | | ???????????????#H # ######?# ?????????????? | | ????????????????+?## ????????+^ ????????????? | | ???????????????????# ????????#### ????????????? | | ????????!??????????# ???????????? #???????????? | | ???????????????????? ???????????? ????????????? | | ?????????????????????????????????????????????????? | | ?????????????????????????????????????????????????? | | ?????????????????????????????????????????????????? | +----------------------------------------------------+ Best States ------------- Heat Dissipation 67 Coolant Potential 50 Energy Generation 55 Energy Capacity 700 Matter Stores 300 Matter Capacity 300 Sight Range 16 Terrain Scan Density 10 Jamming Range 16 Armor Coverage 600 Resistance: KI 30 Resistance: TH 30 Utility Shielding 90 Evasion (%) 50 Targeting Accuracy 10 Core Analysis 8 Armor Integrity Analysis 30 Recoil Reduction 4 Kinecelleration 30 Offensive Hacking 62 Defensive Hacking 21 Authchip Count 6 Item Schematics ----------------- Hacking Suite | -8/Materials | Scanalyzed System Shield | -8/Materials | Scanalyzed Lgt. Treads | -8/Materials | Scanalyzed Adv. Plasma Cannon | -7/Factory | Hacked Hvy. Assault Cannon | -7/Factory | Hacked Combat Drone Bay | -7/Data Miner | Free Lgt. Regenerative Plating | -7/Data Miner | Free Biomechanical Wings | -7/Data Miner | Free Thermal Defense Suite | -7/Data Miner | Free Antimatter Cannon | -7/Data Miner | Free Linear Gravjet | -7/Data Miner | Free Lyr. Heavy Armor Plating | -7/Data Miner | Free Lance | -7/Data Miner | Free Adv. Shield Generator | -7/Data Miner | Free Imp. Focal Shield | -7/Data Miner | Free Quantum Capacitor | -7/Data Miner | Free Adv. Sensor Array | -7/Data Miner | Free Exp. Thermal Shield | -6/Factory | Scanalyzed Hvy. Treads | -6/Factory | Hacked Adv. Coolant Injector | -6/Factory | Hacked Matter Compressor | -6/Factory | Hacked Cld. Plasma Cannon | -6/Factory | Scanalyzed Hvy. Rocket Launcher | -6/Factory | Scanalyzed Graphene Brace | -6/Factory | Scanalyzed Antimatter Reactor | -6/Factory | Scanalyzed Hcp. Matter Pod | -6/Factory | Scanalyzed Hpw. Tractor Beam | -6/Factory | Scanalyzed Stasis Canceller | -6/Zion | Archive Imp. Kinecellerator | -6/Zion | Archive Imp. Core Shielding | -6/Zion | Archive Arm. Medium Treads | -6/Zion | Archive Falx | -6/Zion | Archive Point Defense System | -6/Zion | Archive Lyr. Medium Armor Plating | -6/Zion | Archive Impulse Thruster | -6/Zion | Archive Adv. Hardlight Generator | -6/Zion | Archive Nuclear Pulse Thruster | -6/Zion | Archive 0b10 Decoder Chip [Skirmisher] | -6/Zion | Archive Imp. Thermal Shield | -6/Zion | Archive Proton Cannon | -6/Zion | Archive Adv. Hacking Suite | -5/Factory | Hacked Exp. Utility Shielding | -5/Factory | Hacked Tri-rail Accelerator | -5/Factory | Hacked Hyp. Coil Gun | -5/Factory | Hacked Lrn. Terrain Scanner | -4/Factory | Hacked Tiamat Missile Launcher | -4/Factory | Hacked Enh. Optical Array | -4/Factory | Hacked Imp. Force Field | -4/Factory | Hacked Biometal Heavy Treads | -4/Factory | Hacked Robot Schematics ------------------ G-47 Trooper | -7/Data Miner | Free M-22 Extractor | -7/Data Miner | Free O-24 Administrator | -7/Data Miner | Free B-48 Gladiator | -7/Data Miner | Free X-62 Marksman | -7/Data Miner | Free B-60 Warrior | -7/Data Miner | Free L-41 Fighter | -7/Data Miner | Free Y-54 Guardian | -6/Zion | Archive G-50 Soldier | -6/Zion | Archive H-88 Terminator | -6/Zion | Archive Fabricated ------------ Hvy. Assault Cannon | x1 | -7/Factory | Authchip Adv. Transmission Jammer | x1 | -6/Factory | Preloaded Hvy. Treads | x2 | -6/Factory | Authchip Combat Drone Bay | x1 | -6/Factory Exp. Utility Shielding | x1 | -5/Factory | Authchip Adv. Hacking Suite | x1 | -5/Factory | Authchip Adv. Hacking Suite | x1 | -5/Factory | Authchip Tri-rail Accelerator | x1 | -5/Factory | Authchip Hyp. Coil Gun | x2 | -5/Factory | Authchip Combat Drone Bay | x1 | -5/Factory Alien Tech Used ----------------- None Achievements -------------- None Challenges ------------ None Game ------ Seed ReactionGrapheneSystem Manual? 0 Play Time 03:34:29 Cumulative 429.7 hours Start 2022.05.22 @ 01:56:18 End 2022.05.24 @ 01:31:17 Sessions 25 Manual Loads 0 Difficulty Rogue Special Mode None Game No. 416 Rogue 416 Adventurer 0 Explorer 0 Win Type - Total 21 Types 13/2/3/2/0/0/0/1/0 Lore% 92 Gallery% 91 Achievement% 76 Wizard Run 0 Options --------- ASCII 0 Keyboard 0 Movement Arrows Keybinds 0 Fullscreen 1 Font 18/Smallcaps Map View 76x50 Tactical HUD 1 Map Filters NONE Filters NONE Steam 1 RUN: 482b102b-f5b5-4dc3-b7fb-768d0cf01d31